lending/lending_fUSD_20251116
["ID","MTS","AMOUNT","RATE_DAILY","PERIOD"]
[394149000,1763325038132,-500.0,0.00017973,2]
[394149001,1763325038142,-500.0,0.00017973,2]
[394149002,1763325038151,-500.0,0.00017973,2]
[394149003,1763325038160,-505.48834918,0.00017973,2]
[394149004,1763325038170,-500.0,0.00017973,2]
[394149005,1763325038179,-500.0,0.00017973,2]
[394149006,1763325038189,-500.0,0.00017973,2]
[394149007,1763325038199,-337.06854993,0.00017973,2]
[394149008,1763325038213,-500.0,0.00017973,2]
[394149009,1763325038223,-500.0,0.00017973,2]
[394149010,1763325038232,-502.98988778,0.00017973,2]
[394149011,1763325038243,-466.18419703,0.00017973,2]
[394149012,1763325038254,-500.0,0.00017973,2]
[394149013,1763325038263,-500.0,0.00017973,2]
[394149014,1763325038273,-500.0,0.00017973,2]
[394149015,1763325038284,-500.0,0.00017973,2]
[394149016,1763325038294,-158.54598466,0.00017973,2]
[394149017,1763325038303,-500.0,0.00017973,2]
[394149018,1763325038313,-779.234996,0.0001799,2]
[394149019,1763325038322,-300.0,0.00017999,2]
[394149020,1763325038331,-3934072.12495744,0.00018,2]
[394149021,1763325038341,-17213.11598251,0.00018083,2]
[394149022,1763325038350,-17213.11598251,0.00018256,2]
[394149023,1763325038569,-300.0,0.0001826,2]
[394149024,1763325038579,-195.0,0.0001826,2]
[394149025,1763325038588,-150.5502156,0.0001826,2]
[394149026,1763325038598,-300.0,0.0001826,2]
[394149027,1763325038608,-504.18700032,0.00018421,2]
[394149028,1763325038617,-17213.11598251,0.00018428,2]
[394149029,1763325038628,-1000.0,0.00018521,2]
[394149030,1763325038637,-503.8999643,0.00018521,2]
[394149031,1763325038646,-501.67772144,0.00018521,2]
[394149032,1763325038655,-1000.0,0.00018521,2]
[394149033,1763325038665,-474.82122033,0.00018521,2]
[394149034,1763325038674,-500.0,0.00018521,2]
[394149035,1763325038682,-1000.0,0.00018521,2]
[394149036,1763325038691,-500.0,0.00018521,2]
[394149037,1763325038704,-500.0,0.00018521,2]
[394149038,1763325038713,-313.0,0.00018523,2]
[394149039,1763325038723,-1680.0,0.00018551,2]
[394149041,1763325038732,-17213.11598251,0.000186,2]
[394149043,1763325038741,-250.0,0.000187,2]
[394149045,1763325038751,-1071.42770396,0.000187,2]
[394149047,1763325038761,-482.23406646,0.00019068,2]
[394149050,1763325038770,-1000.0,0.00019068,2]
[394149052,1763325038780,-150.0,0.00019178,2]
[394149054,1763325038790,-169.13557338,0.00019567,2]
[394149055,1763325038799,-250.0,0.00019726,2]
[394149057,1763325038808,-156.76622567,0.00019749,2]
[394149060,1763325038818,-567.71,0.00020187,2]
[394149062,1763325038828,-350.0,0.00020274,2]
[394149064,1763325038837,-208.0,0.00020365,2]
[394149066,1763325038847,-670.89574672,0.00020815,2]
[394149068,1763325038856,-169.13557338,0.00022183,2]
[394149069,1763325038865,-301.13,0.000223,7]
[394149072,1763325038875,-195.0,0.00022378,2]
[394149074,1763325038884,-156.76622567,0.00022448,2]
[394149076,1763325038894,-670.89574672,0.00023747,2]
[394149077,1763325038903,-194.78840876,0.00024536,2]
[394149080,1763325038913,-195.0,0.00024536,2]
[394149082,1763325038922,-250.0,0.00024536,2]
[394149083,1763325038932,-158.0,0.00024658,2]
[394149086,1763325038942,-158.0,0.00024658,2]
[394149088,1763325038951,-158.0,0.00024658,2]
[394149089,1763325038960,-158.0,0.00024658,2]
[394149091,1763325038970,-158.0,0.00024658,2]
[394149093,1763325038979,-158.0,0.00024658,2]
[394149095,1763325038989,-158.0,0.00024658,2]
[394149097,1763325038999,-158.0,0.00024658,2]
[394149100,1763325039009,-158.0,0.00024658,2]
[394149101,1763325039019,-158.0,0.00024658,2]
[394149104,1763325039028,-158.0,0.00024658,2]
[394149106,1763325039038,-158.0,0.00024658,2]
[394149108,1763325039047,-158.0,0.00024658,2]
[394149110,1763325039058,-158.0,0.00024658,2]
[394149111,1763325039067,-158.0,0.00024658,2]
[394149112,1763325039077,-158.0,0.00024658,2]
[394149113,1763325039086,-158.0,0.00024658,2]
[394149114,1763325039100,-158.0,0.00024658,2]
[394149115,1763325039110,-158.0,0.00024658,2]
[394149116,1763325039119,-158.0,0.00024658,2]
[394149117,1763325039128,-158.0,0.00024658,2]
[394149118,1763325039138,-158.0,0.00024658,2]
[394149119,1763325039148,-158.0,0.00024658,2]
[394149120,1763325039157,-158.0,0.00024658,2]
[394149121,1763325039166,-158.0,0.00024658,2]
[394149122,1763325039176,-158.0,0.00024658,2]
[394149123,1763325039186,-158.0,0.00024658,2]
[394149124,1763325039196,-158.0,0.00024658,2]
[394149125,1763325039209,-158.0,0.00024658,2]
[394149126,1763325039219,-158.0,0.00024658,2]
[394149127,1763325039229,-158.0,0.00024658,2]
[394149128,1763325039238,-158.0,0.00024658,2]
[394149129,1763325039249,-158.0,0.00024658,2]
[394149130,1763325039260,-158.0,0.00024658,2]
[394149131,1763325039269,-158.0,0.00024658,2]
[394149132,1763325039280,-158.0,0.00024658,2]
[394149133,1763325039290,-158.0,0.00024658,2]
[394149134,1763325039300,-158.0,0.00024658,2]
[394149135,1763325039310,-158.0,0.00024658,2]
[394149136,1763325039320,-158.0,0.00024658,2]
[394149137,1763325039330,-158.0,0.00024658,2]
[394149138,1763325039339,-153.0,0.00024658,2]
[394149139,1763325039350,-153.0,0.00024658,2]
[394149140,1763325039360,-153.0,0.00024658,2]
[394149141,1763325039369,-153.0,0.00024658,2]
[394149142,1763325039378,-153.0,0.00024658,2]
[394149143,1763325039388,-153.0,0.00024658,2]
[394149144,1763325039398,-153.0,0.00024658,2]
[394149145,1763325039407,-153.0,0.00024658,2]
[394149146,1763325039416,-153.0,0.00024658,2]
[394149147,1763325039426,-153.0,0.00024658,2]
[394149148,1763325039435,-153.0,0.00024658,2]
[394149149,1763325039444,-153.0,0.00024658,2]
[394149150,1763325039454,-164.00583255,0.00024773,2]
[394149151,1763325039463,-1000.0,0.000248,30]
[394149152,1763325039472,-1000.0,0.000248,30]
[394149153,1763325039482,-233.64497913,0.000248,2]
[394149154,1763325039493,-596.25,0.000248,14]
[394149155,1763325039504,-615958.741348,0.000248,3]
[394149156,1763325039514,-169.13557338,0.000248,2]
[394149157,1763325039524,-622043.175989,0.000249,3]
[394149158,1763325039533,-800.0,0.000249,9]
[394149159,1763325039545,-151.0,0.000249,7]
[394149160,1763325039554,-151.0,0.000249,7]
[394149161,1763325039563,-151.0,0.000249,7]
[394149162,1763325039572,-151.0,0.000249,7]
[394149163,1763325039582,-1695.742304,0.000249,7]
[394149164,1763325039591,-151.0,0.000249,7]
[394149165,1763325039601,-151.0,0.000249,7]
[394149166,1763325039610,-1695.742304,0.000249,7]
[394149167,1763325039619,-151.0,0.000249,7]
[394149168,1763325039629,-1695.742304,0.000249,7]
[394149169,1763325039638,-1695.742304,0.000249,7]
[394149170,1763325039648,-386.376677,0.000249,7]
[394149171,1763325039658,-386.376677,0.000249,7]
[394149172,1763325039667,-165.666462,0.000249,7]
[394149173,1763325039676,-386.376677,0.000249,7]
[394149174,1763325039685,-386.376677,0.000249,7]
[394149175,1763325039695,-151.0,0.000249,7]
[394149176,1763325039705,-199.757326,0.000249,7]
[394149177,1763325039715,-199.757326,0.000249,7]
[394149178,1763325039725,-199.757326,0.000249,7]
[394149179,1763325039736,-199.757326,0.000249,7]
[394149180,1763325039746,-151.0,0.000249,7]
[394149181,1763325039756,-151.0,0.000249,7]
[394149182,1763325039766,-151.0,0.000249,7]
[394149184,1763325039775,-151.0,0.000249,7]
[394149185,1763325039785,-151.0,0.000249,7]
[394149186,1763325039795,-151.0,0.000249,7]
[394149187,1763325039804,-151.0,0.000249,7]
[394149188,1763325039813,-174.433953,0.000249,7]
[394149189,1763325039823,-151.0,0.000249,7]
[394149190,1763325039832,-174.433953,0.000249,7]
[394149191,1763325039841,-174.433953,0.000249,7]
[394149193,1763325039851,-174.433953,0.000249,7]
[394149194,1763325039861,-151.0,0.000249,7]
[394149195,1763325039871,-235.011081,0.000249,7]
[394149196,1763325039881,-235.011081,0.000249,7]
[394149197,1763325039892,-151.0,0.000249,7]
[394149198,1763325039902,-151.0,0.000249,7]
[394149199,1763325039911,-235.011081,0.000249,7]
[394149200,1763325039922,-188.279895,0.000249,7]
[394149201,1763325039933,-151.0,0.000249,7]
[394149202,1763325039942,-235.011081,0.000249,7]
[394149203,1763325039951,-188.279895,0.000249,7]
[394149204,1763325039961,-188.279895,0.000249,7]
[394149205,1763325039970,-151.0,0.000249,7]
[394149206,1763325039979,-151.0,0.000249,7]
[394149207,1763325039988,-151.0,0.000249,7]
[394149208,1763325039998,-188.279895,0.000249,7]
[394149209,1763325040008,-151.0,0.000249,7]
[394149210,1763325040017,-151.0,0.000249,7]
[394149211,1763325040027,-151.0,0.000249,7]
[394149212,1763325040036,-176.684608,0.000249,7]
[394149213,1763325040045,-151.0,0.000249,7]
[394149214,1763325040054,-151.0,0.000249,7]
[394149215,1763325040063,-159.242683,0.000249,7]
[394149216,1763325040072,-156.76622567,0.00025147,2]
[394149217,1763325040081,-500.0,0.00026438,2]
[394149218,1763325040090,-567.71,0.00026676,2]
[394149219,1763325040099,-670.89574672,0.00026679,2]
[394149220,1763325040109,-276.09960154,0.00027397,2]
[394149221,1763325040119,-300.0,0.00027397,2]
[394149222,1763325040127,-600.0,0.00027488,2]
[394149223,1763325040137,-598.73,0.000275,7]
[394149224,1763325040147,-909.9,0.000275,2]
[394149225,1763325040156,-166.66,0.00027556,2]
[394149226,1763325040166,-156.76622567,0.00027846,2]
[394149227,1763325040175,-160.16,0.00027903,2]
[394149228,1763325040184,-150.99,0.00027903,2]
[394149229,1763325040193,-479.06402154,0.00028224,2]
[394149230,1763325040204,-454.67,0.00028236,2]
[394149231,1763325040215,-300.0,0.00028254,10]
[394149232,1763325040225,-166.66,0.00028465,2]
[394149233,1763325040234,-1065.45234406,0.00028471,3]
[394149234,1763325040244,-155.27,0.0002878,30]
[394149235,1763325040254,-462.6291651,0.00029195,5]
[394149236,1763325040264,-276.36384412,0.00029299,10]
[394149237,1763325040273,-166.66,0.00029375,2]
[394149238,1763325040285,-301.13,0.000295,7]
[394149239,1763325040295,-1641.07204354,0.0002952,2]
[394149240,1763325040304,-670.89574672,0.00029611,2]
[394149241,1763325040313,-1190.0,0.000298,2]
[394149242,1763325040323,-907.0,0.000298,2]
[394149243,1763325040332,-505.547,0.000298,2]
[394149244,1763325040342,-560.0,0.000298,2]
[394149245,1763325040351,-1604.0,0.000298,2]
[394149246,1763325040360,-1348.318,0.000298,2]
[394149247,1763325040370,-575.0,0.000298,2]
[394149248,1763325040379,-8752.61221011,0.0003,3]
[394149249,1763325040389,-166.66,0.00030285,2]
[394149250,1763325040398,-155.27,0.00030369,30]
[394149251,1763325040408,-150.0,0.00030397,20]
[394149252,1763325040418,-156.76622567,0.00030544,15]
[394149253,1763325040427,-598.73,0.00031,30]
[394149255,1763325040436,-166.66,0.00031194,2]
[394149256,1763325040446,-909.9,0.000312,2]
[394149257,1763325040455,-1788.77,0.000312,14]
[394149258,1763325040465,-6548.82732371,0.0003143,4]
[394149259,1763325040475,-155.27,0.00031957,30]
[394149260,1763325040485,-166.36857467,0.00032,120]
[394149261,1763325040494,-166.66,0.00032104,2]
[394149262,1763325040504,-151.0,0.00032106,2]
[394149263,1763325040514,-156.587,0.00032106,2]
[394149264,1763325040523,-311.84574709,0.00032106,2]
[394149265,1763325040532,-670.89574672,0.00032544,2]
[394149266,1763325040542,-204518.0,0.000326,2]
[394149267,1763325040551,-969.5,0.00032673,30]
[394149268,1763325040560,-1190.0,0.000328,2]
[394149269,1763325040568,-907.0,0.000328,2]
[394149270,1763325040577,-1604.0,0.000328,2]
[394149271,1763325040587,-1318.0,0.000328,2]
[394149272,1763325040596,-575.0,0.000328,2]
[394149273,1763325040605,-500.0,0.00032877,7]
[394149274,1763325040615,-500.0,0.00032877,7]
[394149275,1763325040624,-500.0,0.00032877,7]
[394149276,1763325040633,-500.0,0.00032877,7]
[394149277,1763325040642,-500.0,0.00032877,7]
[394149278,1763325040652,-500.0,0.00032877,7]
[394149279,1763325040661,-500.0,0.00032877,7]
[394149280,1763325040671,-277.08105166,0.00032877,7]
[394149281,1763325040680,-500.0,0.00032877,7]
[394149282,1763325040689,-166.36857467,0.00033,120]
[394149283,1763325040698,-567.71,0.00033165,2]
[394149284,1763325040707,-156.76622567,0.00033243,15]
[394149285,1763325040716,-5518.0,0.000333,3]
[394149286,1763325040725,-155.27,0.00033546,30]
[394149287,1763325040734,-166.36857467,0.000339,120]
[394149288,1763325040744,-150.0,0.0003397,8]
[394149289,1763325040753,-799.299,0.00034021,37]
[394149290,1763325040762,-150.0,0.00034027,37]
[394149291,1763325040772,-5518.0,0.000341,5]
[394149292,1763325040780,-168.0,0.00034207,2]
[394149293,1763325040789,-168.0,0.00034309,2]
[394149294,1763325040799,-5000.0,0.00034489,2]
[394149295,1763325040808,-168.0,0.0003454,2]
[394149296,1763325040817,-2722.18,0.00034546,2]
[394149297,1763325040827,-909.9,0.000346,2]
[394149298,1763325040835,-168.0,0.00034639,2]
[394149299,1763325040845,-150.0,0.00034792,9]
[394149300,1763325040854,-999.0,0.00034795,3]
[394149301,1763325040863,-166.36857467,0.00035,120]
[394149302,1763325040871,-250.0,0.00035,30]
[394149303,1763325040881,-1000.0,0.00035,12]
[394149304,1763325040890,-1000.0,0.00035,12]
[394149305,1763325040899,-1000.0,0.00035,12]
[394149306,1763325040909,-168.0,0.00035027,7]
[394149307,1763325040919,-168.0,0.00035122,2]
[394149308,1763325040928,-155.27,0.00035134,60]
[394149309,1763325040938,-168.0,0.00035316,2]
[394149310,1763325040947,-300.0,0.00035425,2]
[394149311,1763325040956,-500.0,0.00035433,2]
[394149312,1763325040966,-670.89574672,0.00035476,2]
[394149313,1763325040975,-247.7658,0.00035495,120]
[394149314,1763325040985,-598.73,0.000355,30]
[394149315,1763325040994,-150.0,0.00035533,2]
[394149316,1763325041003,-150.0,0.00035533,120]
[394149317,1763325041012,-168.0,0.00035561,2]
[394149318,1763325041022,-200.0,0.00035564,2]
[394149319,1763325041031,-168.0,0.00035581,120]
[394149320,1763325041040,-168.0,0.00035614,2]
[394149321,1763325041050,-6000.0,0.00035616,5]
[394149322,1763325041059,-168.0,0.00035627,2]
[394149323,1763325041068,-1500.0,0.00035702,120]
[394149324,1763325041078,-500.0,0.00035779,120]
[394149325,1763325041087,-500.0,0.00035779,120]
[394149326,1763325041096,-1190.0,0.000358,2]
[394149327,1763325041105,-907.0,0.000358,2]
[394149328,1763325041253,-1604.0,0.000358,2]
[394149329,1763325041264,-1318.0,0.000358,2]
[394149330,1763325041274,-575.0,0.000358,2]
[394149331,1763325041284,-780.53157,0.00035888,30]
[394149332,1763325041294,-226.0,0.0003589,5]
[394149333,1763325041304,-156.76622567,0.00035942,15]
[394149334,1763325041313,-168.0,0.00035964,2]
[394149335,1763325041324,-191.0,0.00036,30]
[394149336,1763325041335,-231721.36829206,0.00036,2]
[394149337,1763325041344,-10722.81844621,0.00036,2]
[394149338,1763325041353,-210.12,0.00036,120]
[394149339,1763325041363,-2500.0,0.00036025,2]
[394149340,1763325041373,-26796.9424708,0.00036053,2]
[394149341,1763325041384,-5000.0,0.00036062,2]
[394149342,1763325041393,-500.0,0.00036073,5]
[394149343,1763325041403,-159.65016984,0.00036073,5]
[394149344,1763325041414,-229.8903802,0.00036075,2]
[394149345,1763325041423,-780.53157,0.00036088,30]
[394149346,1763325041433,-79879.69048628,0.000361,2]
[394149347,1763325041444,-150.0,0.00036125,3]
[394149348,1763325041454,-168.0,0.00036263,2]
[394149349,1763325041464,-168.0,0.00036264,2]
[394149350,1763325041474,-2500.0,0.00036267,2]
[394149351,1763325041483,-230.85,0.00036282,120]
[394149352,1763325041492,-5000.0,0.00036286,2]
[394149353,1763325041503,-12500.0,0.00036287,2]
[394149354,1763325041513,-217.445781,0.00036287,31]
[394149355,1763325041522,-151.0,0.00036287,31]
[394149356,1763325041532,-151.0,0.00036287,31]
[394149357,1763325041540,-151.0,0.00036287,31]
[394149358,1763325041550,-1695.742304,0.00036287,31]
[394149359,1763325041559,-151.0,0.00036287,31]
[394149360,1763325041568,-151.0,0.00036287,31]
[394149361,1763325041578,-1695.742304,0.00036287,31]
[394149362,1763325041588,-151.0,0.00036287,31]
[394149363,1763325041599,-1695.742304,0.00036287,31]
[394149364,1763325041610,-1695.742304,0.00036287,31]
[394149365,1763325041621,-386.376677,0.00036287,31]
[394149366,1763325041630,-386.376677,0.00036287,31]
[394149367,1763325041640,-386.376677,0.00036287,31]
[394149368,1763325041649,-386.376677,0.00036287,31]
[394149369,1763325041659,-151.0,0.00036287,31]
[394149370,1763325041669,-199.757326,0.00036287,31]
[394149371,1763325041678,-199.757326,0.00036287,31]
[394149372,1763325041687,-199.757326,0.00036287,31]
[394149373,1763325041696,-199.757326,0.00036287,31]
[394149374,1763325041706,-151.0,0.00036287,31]
[394149375,1763325041716,-181.313631,0.00036287,31]
[394149376,1763325041727,-151.0,0.00036287,31]
[394149377,1763325041738,-151.0,0.00036287,31]
[394149378,1763325041749,-151.0,0.00036287,31]
[394149379,1763325041759,-151.0,0.00036287,31]
[394149380,1763325041769,-151.0,0.00036287,31]
[394149381,1763325041779,-174.433953,0.00036287,31]
[394149382,1763325041789,-151.0,0.00036287,31]
[394149383,1763325041799,-174.433953,0.00036287,31]
[394149384,1763325041809,-174.433953,0.00036287,31]
[394149385,1763325041820,-174.433953,0.00036287,31]
[394149386,1763325041831,-188.279895,0.00036287,31]
[394149387,1763325041842,-188.279895,0.00036287,31]
[394149388,1763325041853,-188.279895,0.00036287,31]
[394149389,1763325041862,-188.279895,0.00036287,31]
[394149390,1763325041872,-780.53157,0.00036288,30]
[394149391,1763325041881,-2500.0,0.00036316,2]
[394149392,1763325041891,-5000.0,0.00036353,2]
[394149393,1763325041900,-909.9,0.000364,2]
[394149394,1763325041911,-150.0,0.00036436,11]
[394149395,1763325041920,-2500.0,0.00036478,2]
[394149396,1763325041930,-780.53157,0.00036488,30]
[394149397,1763325041939,-1000.0,0.0003649,30]
[394149398,1763325041949,-500.0,0.00036538,30]
[394149399,1763325041959,-2500.0,0.00036568,2]
[394149400,1763325041968,-151.0,0.00036575,31]
[394149401,1763325041978,-235.011081,0.00036575,31]
[394149402,1763325041987,-235.011081,0.00036575,31]
[394149403,1763325041996,-151.0,0.00036575,30]
[394149404,1763325042007,-151.0,0.00036575,31]
[394149405,1763325042016,-235.011081,0.00036575,31]
[394149406,1763325042025,-151.0,0.00036575,31]
[394149407,1763325042034,-235.011081,0.00036575,31]
[394149408,1763325042043,-151.0,0.00036575,31]
[394149409,1763325042053,-151.0,0.00036575,31]
[394149410,1763325042063,-151.0,0.00036575,31]
[394149411,1763325042072,-151.0,0.00036575,31]
[394149412,1763325042081,-151.0,0.00036575,31]
[394149413,1763325042090,-151.0,0.00036575,31]
[394149414,1763325042100,-151.0,0.00036575,31]
[394149415,1763325042111,-151.0,0.00036575,31]
[394149416,1763325042120,-1208.76,0.00036575,2]
[394149417,1763325042129,-169.42,0.00036575,2]
[394149418,1763325042139,-150.0,0.00036575,2]
[394149419,1763325042148,-1208.76,0.00036575,2]
[394149420,1763325042157,-169.42,0.00036575,2]
[394149421,1763325042166,-150.0,0.00036575,2]
[394149422,1763325042175,-169.42,0.00036575,2]
[394149423,1763325042184,-1208.76,0.00036575,2]
[394149424,1763325042193,-150.0,0.00036575,2]
[394149425,1763325042204,-169.42,0.00036575,2]
[394149426,1763325042216,-1208.76,0.00036575,2]
[394149427,1763325042226,-150.0,0.00036575,2]
[394149428,1763325042235,-1208.76,0.00036575,2]
[394149429,1763325042245,-169.42,0.00036575,2]
[394149430,1763325042254,-150.0,0.00036575,2]
[394149431,1763325042264,-1208.76,0.00036575,2]
[394149432,1763325042274,-169.42,0.00036575,2]
[394149433,1763325042285,-150.0,0.00036575,2]
[394149434,1763325042295,-169.42,0.00036575,2]
[394149435,1763325042304,-150.0,0.00036575,2]
[394149436,1763325042314,-1208.76,0.00036575,2]
[394149437,1763325042324,-1000.0,0.00036603,30]
[394149438,1763325042333,-1000.0,0.00036621,5]
[394149439,1763325042343,-500.0,0.00036626,120]
[394149440,1763325042352,-500.0,0.00036626,120]
[394149441,1763325042362,-150.0,0.0003663,30]
[394149442,1763325042371,-800.0,0.00036669,30]
[394149443,1763325042381,-780.53157,0.00036688,30]
[394149444,1763325042391,-168.0,0.00036689,2]
[394149445,1763325042400,-598.73,0.000367,30]
[394149446,1763325042410,-500.0,0.00036721,30]
[394149447,1763325042420,-155.27,0.00036723,60]
[394149448,1763325042430,-168.0,0.0003676,2]
[394149449,1763325042439,-5000.0,0.00036776,2]
[394149450,1763325042449,-2500.0,0.00036789,2]
[394149451,1763325042459,-300.0,0.00036795,2]
[394149452,1763325042468,-700.0,0.00036826,30]
[394149453,1763325042478,-5000.0,0.00036832,2]
[394149454,1763325042487,-750.67,0.00036835,2]
[394149455,1763325042496,-12500.0,0.00036878,2]
[394149456,1763325042505,-700.0,0.00036878,30]
[394149457,1763325042514,-780.53157,0.00036888,30]
[394149458,1763325042523,-500.0,0.00036891,30]
[394149459,1763325042532,-13946.62746171,0.0003691,2]
[394149460,1763325042541,-800.0,0.00036934,30]
[394149461,1763325042551,-5000.0,0.00036974,2]
[394149462,1763325042561,-150.0,0.00036984,31]
[394149463,1763325042571,-150.0,0.00036984,28]
[394149464,1763325042581,-500.0,0.00036986,15]
[394149465,1763325042591,-181.3841226,0.00036986,15]
[394149466,1763325042600,-768.01885,0.00037,10]
[394149467,1763325042610,-500.0,0.00037019,30]
[394149468,1763325042619,-700.0,0.00037034,30]
[394149469,1763325042629,-150.0,0.00037057,10]
[394149471,1763325042639,-168.0,0.00037068,7]
[394149472,1763325042648,-780.53157,0.00037088,30]
[394149473,1763325042657,-1500.0,0.00037168,5]
[394149474,1763325042666,-48416.94,0.0003719,2]
[394149475,1763325042676,-150.0,0.00037199,120]
[394149476,1763325042686,-150.0,0.00037235,60]
[394149477,1763325042695,-168.0,0.00037251,2]
[394149478,1763325042704,-500.0,0.00037257,30]
[394149479,1763325042713,-150.0,0.00037258,12]
[394149480,1763325042723,-780.53157,0.00037288,30]
[394149481,1763325042733,-150.0,0.00037359,7]
[394149483,1763325042742,-168.0,0.00037362,2]
[394149485,1763325042751,-150.0,0.00037389,14]
[394149486,1763325042762,-700.0,0.00037402,30]
[394149487,1763325042771,-340.68,0.00037409,2]
[394149488,1763325042780,-1208.37,0.00037429,2]
[394149490,1763325042790,-1208.76,0.00037429,2]
[394149491,1763325042800,-1208.76,0.00037429,2]
[394149492,1763325042809,-1208.76,0.00037429,2]
[394149493,1763325042819,-1208.76,0.00037429,2]
[394149494,1763325042828,-1206.81,0.00037429,2]
[394149495,1763325042838,-700.0,0.00037466,30]
[394149496,1763325042847,-700.0,0.00037488,30]
[394149497,1763325042857,-780.53157,0.00037488,30]
[394149498,1763325042867,-500.0,0.00037503,30]
[394149499,1763325042877,-278.61,0.00037524,2]
[394149500,1763325042886,-800.0,0.0003754,30]
[394149501,1763325042895,-600.0,0.00037541,2]
[394149502,1763325042905,-150.0,0.00037548,15]
[394149503,1763325042915,-500.0,0.0003756,30]
[394149504,1763325042924,-500.0,0.00037565,30]
[394149505,1763325042934,-271.51,0.00037576,2]
[394149506,1763325042944,-500.0,0.00037609,30]
[394149507,1763325042953,-500.0,0.00037612,30]
[394149508,1763325042963,-800.0,0.00037655,30]
[394149509,1763325042972,-1000.0,0.00037688,30]
[394149510,1763325042982,-780.53157,0.00037688,30]
[394149512,1763325042992,-700.0,0.00037693,30]
[394149514,1763325043001,-1010.16852584,0.00037716,5]
[394149515,1763325043011,-168.0,0.00037731,2]
[394149516,1763325043020,-500.0,0.00037734,30]
[394149517,1763325043029,-500.0,0.00037764,2]
[394149518,1763325043038,-500.0,0.00037764,30]
[394149519,1763325043047,-150.0,0.00037764,30]
[394149520,1763325043056,-258.36483336,0.00037764,30]
[394149521,1763325043066,-500.0,0.00037764,30]
[394149522,1763325043075,-150.0,0.00037764,2]
[394149523,1763325043084,-150.0,0.00037764,30]
[394149524,1763325043094,-150.0,0.00037764,30]
[394149525,1763325043103,-150.0,0.00037764,30]
[394149526,1763325043112,-150.0,0.00037764,30]
[394149527,1763325043122,-150.0,0.00037764,30]
[394149528,1763325043131,-150.0,0.00037764,30]
[394149529,1763325043141,-150.0,0.00037764,15]
[394149530,1763325043150,-500.0,0.00037764,2]
[394149531,1763325043159,-515.0,0.00037764,30]
[394149532,1763325043169,-598.73,0.000378,30]
[394149533,1763325043179,-500.0,0.00037819,2]
[394149534,1763325043188,-500.0,0.00037819,30]
[394149535,1763325043197,-500.0,0.00037819,30]
[394149536,1763325043210,-150.0,0.00037819,15]
[394149537,1763325043219,-500.0,0.00037819,2]
[394149538,1763325043228,-515.0,0.00037819,30]
[394149539,1763325043238,-165441.3860991,0.00037825,2]
[394149540,1763325043247,-17366.0932965,0.00037825,2]
[394149541,1763325043256,-151.0,0.00037825,31]
[394149542,1763325043266,-151.0,0.00037825,31]
[394149543,1763325043280,-614.064354,0.00037825,31]
[394149544,1763325043289,-151.0,0.00037825,31]